[Event "CCT Airthings Masters Play-In 2023"]
[Site "Online"]
[Date "2023.02.03"]
[Round "5"]
[White "LiemLe"]
[Black "Alexandr_Predke"]
[Result "1-0"]
[ECO "A46"]
[WhiteElo "2674"]
[BlackElo "2595"]
[Annotator "TA"]
[PlyCount "61"]
[EventDate "2023.02.03"]
[EventType "swiss"]
[EventCountry "NET"]
[SourceTitle "playchess.com"]
[Source "ChessBase"]
[SourceQuality "1"]
[TimeControl "600+2"]

{[%evp 9,61,4,18,0,0,0,8,0,81,86,75,72,138,129,140,128,165,145,138,144,141,85,95,94,201,201,380,221,231,227,213,209,203,113,97,103,102,95,306,296,277,311,304,283,279,218,218,222,702,673,836,803,29973,29973]} 1. d4 {[%emt 0:00:03]} Nf6 {[%emt 0:00:04]} 2. Nf3 {[%emt 0:00:00]} e6 {[%emt 0:00:02]} 3. Bf4 {[%emt 0:00:01]} c5 {[%emt 0:00:02]} 4. e3 {[%emt 0:00:02]} Nc6 {[%emt 0:00:02]} 5. Nbd2 {[%emt 0:00:02]} h6 {[%emt 0:00:09]} 6. h3 {[%emt 0:00:10] A46: 1 d4 Nf6 2 Nf3 e6: Torre, London and Colle Systems.} d5 {[%emt 0:00:02]} 7. Bb5 {[%emt 0:00:15] [#]} Qb6 $146 {[%emt 0:00:40]} ({Predecessor:} 7... Bd7 8. O-O Qb6 9. c4 Be7 10. dxc5 Bxc5 11. Rc1 O-O 12. Nb3 Be7 13. Qe2 a6 14. Bxc6 bxc6 {0-1 Le,Q (2709)-Ponkratov,P (2628) Speed Chess Super Swiss blitz 2020 (4)}) 8. c4 {[%emt 0:00:02] The position is equal.} dxc4 {[%emt 0:00:08]} (8... cxd4 $11 9. exd4 (9. Nxd4 Bd7 $11) 9... Bd7) 9. a4 $16 {[%emt 0:00:08]} (9. Bxc4 $6 cxd4 10. exd4 Be7 $11) 9... cxd4 {[%emt 0:02:29]} 10. O-O {[%emt 0:00:06]} Bd7 {[%emt 0:00:32]} (10... dxe3 $142 11. Nxc4 (11. Bxe3 Qc7 $11) 11... Qd8) 11. Nxc4 {[%emt 0:00:02]} (11. Bxc4 dxe3 12. Bxe3 Bc5 13. Bxc5 Qxc5 $15) 11... Qd8 {[%emt 0:00:20]} 12. Nxd4 {[%emt 0:00:27]} (12. exd4 $6 a6 13. Bxc6 Bxc6 $11) 12... Nd5 {[%emt 0:01:08]} 13. Bg3 {[%emt 0:00:43][%cal Od4f5]} Be7 {[%emt 0:00:52]} 14. Bxc6 {[%emt 0:00:11]} Bxc6 {[%emt 0:00:09] [#]} 15. Nxc6 {[%emt 0:00:20]} (15. Ne5 $142 $1 {[%cal Od4e6] Black must now prevent Nxe6!} O-O 16. Nexc6 (16. Ndxc6 bxc6 17. Nxc6 Qb6 $16) 16... bxc6 17. Nxc6) 15... bxc6 {[%emt 0:00:00]} 16. e4 {[%emt 0:00:01]} Nb6 {[%emt 0:00:32]} (16... Nf6 $16) 17. Ne5 $18 {[%emt 0:00:30]} Rc8 $2 {[%emt 0:00:39]} (17... Qxd1 18. Rfxd1 Bf6 19. Nxc6 Nc4) 18. Qf3 {[%emt 0:01:00]} (18. Qb3 $142) 18... O-O {[%emt 0:00:14]} 19. Rfd1 {[%emt 0:00:01]} Qe8 {[%emt 0:00:01]} 20. a5 {[%emt 0:00:01]} f6 {[%emt 0:00:03]} 21. Ng4 {[%emt 0:02:13]} (21. axb6 $18 fxe5 22. Qg4) 21... Nd7 $16 {[%emt 0:00:46]} 22. Qb3 {[%emt 0:00:01] White is much more active.} Nc5 {[%emt 0:00:31][%csl LRb3,LRe4]} 23. Qc4 $36 {[%emt 0:00:03][%mdl 2048] White is on the roll.} Qg6 $2 {[%emt 0:00:16] [#] A mistake that costs the game.} (23... Qf7 $16) 24. b4 $1 $18 {[%emt 0:01:01]} Nxe4 {[%emt 0:00:36]} (24... Qxe4 $2 25. Rd4 Qg6 26. bxc5 $18) 25. Qxe6+ {[%emt 0:00:01]} Qf7 {[%emt 0:00:00]} 26. Qxe4 {[%emt 0:00:01]} f5 {[%emt 0:00:01]} 27. Qe2 {[%emt 0:00:04]} fxg4 {[%emt 0:00:04]} 28. Rd7 {[%emt 0:00:01]} (28. Qxg4 h5 29. Qe4 Rfe8) (28. hxg4 Bxb4 29. f3 Rfe8 $11) 28... Rce8 {[%emt 0:00:04]} (28... Rfe8 29. Rxa7 (29. Qxg4 h5 $18) 29... gxh3 30. gxh3 Bf6) 29. Re1 {[%emt 0:00:02]} ({Weaker is} 29. Rxa7 gxh3 30. Qe5 (30. gxh3 Bxb4 31. Rxf7 Rxe2 $16) (30. Re1 Qd5 $16) 30... Qf6 $16) ({Stronger than} 29. hxg4 Bxb4 30. Qd3 (30. Rxf7 Rxe2 31. Rxa7 Bc5 $11) 30... Re7 31. Rxe7 Bxe7 $14) 29... Bxb4 {[%emt 0:00:27]} 30. Rxf7 {[%emt 0:00:03]} Kxf7 {[%emt 0:00:07]} 31. Qc4+ {[%emt 0:00:02] Weighted Error Value: White=0.18 (very precise) /Black=0.67} 1-0

[Event "CCT Airthings Masters Play-In 2023"]
[Site "Online"]
[Date "2023.02.03"]
[Round "5"]
[White "Baku_Boulevard"]
[Black "Sanan_Sjugirov"]
[Result "1-0"]
[ECO "C77"]
[WhiteElo "2669"]
[BlackElo "2548"]
[Annotator "TA"]
[PlyCount "99"]
[EventDate "2023.02.03"]
[EventType "swiss"]
[EventCountry "NET"]
[SourceTitle "playchess.com"]
[Source "ChessBase"]
[SourceQuality "1"]
[TimeControl "600+2"]

{[%evp 9,99,0,0,0,0,0,6,-22,0,-33,-30,-30,-29,-47,-35,-37,-46,-39,0,-6,0,-12,-13,0,0,0,0,-51,-39,-42,-50,-58,-54,-58,-56,-58,-49,-71,-11,-59,126,110,137,141,124,142,125,124,125,85,144,143,191,126,130,121,131,128,118,89,84,77,190,145,187,182,286,283,300,198,190,190,190,176,161,0,0,0,0,0,0,0,0,0,0,0,0,0,230,224,29984,29985]} 1. e4 {[%emt 0:00:52]} e5 {[%emt 0:00:12]} 2. Nf3 {[%emt 0:00:06]} Nc6 {[%emt 0:00:01]} 3. Bb5 {[%emt 0:00:02]} a6 {[%emt 0:00:08]} 4. Ba4 {[%emt 0:00:02]} Nf6 {[%emt 0:00:01]} 5. Nc3 {[%emt 0:00:01]} Bc5 {[%emt 0:00:38]} 6. d3 {[%emt 0:00:04] C77: Ruy Lopez: 3...a6 4 Ba4 Nf6, unusual lines.} d6 {[%emt 0:00:25]} 7. Bg5 {[%emt 0:00:06] 7.Bxc6+ might become the main line.} h6 {[%emt 0:01:30]} 8. Bh4 {[%emt 0:00:02] The position is equal.} Bd7 {[%emt 0:00:14] [#]} 9. a3 $146 {[%emt 0:00:59]} ({Predecessor:} 9. Qd2 Bb4 10. a3 Ba5 11. b4 Nxb4 12. axb4 Bxb4 13. Bxd7+ Qxd7 14. Rb1 a5 15. O-O c5 16. Ne1 a4 17. Bxf6 gxf6 18. Rxb4 cxb4 19. Nd5 Qb5 {1-0 Schoenbuchner,G (968)-Cipka,I (1367) LSS RN-2009-0-00224}) 9... g5 {[%emt 0:00:33]} 10. Bg3 {[%emt 0:00:01]} Ba7 {[%emt 0:00:08]} 11. Bb3 {[%emt 0:00:08]} Bg4 {[%emt 0:00:16]} 12. h3 {[%emt 0:00:57]} Bh5 {[%emt 0:00:32]} 13. h4 {[%emt 0:00:02]} Bxf3 {[%emt 0:01:39]} 14. Qxf3 {[%emt 0:00:21] Black must now prevent hxg5.} (14. gxf3 $5 {[%cal Rh4g5]} Nh5 15. f4 Nxf4 16. Bxf4 gxf4 17. Bxf7+ {[%mdl 64] Decoy} Kxf7 18. Qh5+ Kf8 19. Qf5+ Ke8 20. Qh5+ Kf8 21. Qf5+ Ke8 22. Qh5+ Kf8 $11) 14... Nd4 {[%emt 0:00:01]} 15. Qd1 {[%emt 0:00:01]} Nxb3 {[%emt 0:00:01]} 16. cxb3 {[%emt 0:00:00] hxg5 would be deadly.} g4 {[%emt 0:00:05]} 17. h5 {[%emt 0:00:01]} Qd7 {[%emt 0:00:05]} 18. Rc1 {[%emt 0:00:59]} (18. b4 $11) 18... c6 {[%emt 0:00:09]} 19. b4 {[%emt 0:00:02]} Qe6 {[%emt 0:00:06]} 20. Qd2 {[%emt 0:00:42]} d5 {[%emt 0:00:12]} 21. exd5 {[%emt 0:00:06]} Nxd5 {[%emt 0:00:06]} 22. Nxd5 {[%emt 0:00:16]} Qxd5 {[%emt 0:00:02]} 23. Qe2 {[%emt 0:00:01][%csl LRe5,LRg4]} Bd4 {[%emt 0:00:50]} ({Better is} 23... O-O-O $1 $17 {...f5 is the strong threat.} 24. Qxg4+ Rd7) 24. O-O {[%emt 0:00:19][%cal Bh1f1,Bf1e1,Be1e5,Be5e6,Be6g6][%mdl 32]} (24. Qxg4 $11 {deserves consideration.} Ke7 25. Rc2) 24... f5 $2 {[%emt 0:00:43] [#]} (24... O-O-O $15 25. Qxg4+ Kb8) 25. Bxe5 $1 $16 {[%emt 0:00:08][%mdl 512]} Qxe5 {[%emt 0:00:32]} (25... Bxe5 $2 26. Rc5 O-O-O 27. Rxd5 (27. Qxe5 Qxe5 28. Rxe5 f4 $16) 27... Rxd5 28. g3 $18) (25... O-O 26. Bxd4) 26. Qxe5+ {[%emt 0:00:02]} Bxe5 {[%emt 0:00:00]} 27. Rfe1 {[%emt 0:00:00]} O-O {[%emt 0:00:35]} 28. Rxe5 {[%emt 0:00:01][%mdl 4096] Endgame KRR-KRR} Rad8 {[%emt 0:00:00]} 29. Rce1 {[%emt 0:00:19]} Rxd3 {[%emt 0:00:25]} (29... Kg7 $142) 30. Re6 {[%emt 0:00:02]} Rfd8 {[%emt 0:00:28] [#]} (30... Rf7 $16) 31. R1e5 {[%emt 0:00:27]} ({White should try} 31. Rg6+ $1 $18 Kf8 32. Rf6+ (32. Rxh6 R3d6 $16) 32... Kg7 33. Rg6+ (33. Rxf5 R8d7 $16) 33... Kf8 34. Rf6+ (34. Rxh6 R3d6 $16) 34... Kg8 35. Rg6+ (35. Rxf5 g3 $16) (35. Rxh6 Rd1 $16) 35... Kf8) 31... R8d5 {[%emt 0:00:10]} 32. Rg6+ {[%emt 0:01:15]} Kf7 {[%emt 0:00:01]} 33. Ree6 {[%emt 0:00:01]} f4 {[%emt 0:00:11]} (33... Rd1+ $2 34. Kh2 $18) 34. Rgf6+ {[%emt 0:00:16]} (34. Rxh6 Rd1+ 35. Kh2 Rxh5+ 36. Rxh5 Kxe6 $11) 34... Kg7 {[%emt 0:00:00] ( -> ...Rd1+)} 35. Rxf4 {[%emt 0:00:08] Strongly threatening Rg6+.} Rxh5 {[%emt 0:00:09]} (35... Rd1+ $16 {keeps fighting.} 36. Kh2 Rxh5+ 37. Kg3 Rd3+ 38. Re3 Rxe3+ 39. fxe3 Rb5) 36. g3 {[%emt 0:00:05]} (36. Rxg4+ $6 Kf7 37. Re1 Rf5 $16) 36... Rd1+ {[%emt 0:00:03]} 37. Kg2 {[%emt 0:00:01]} Rg5 {[%emt 0:00:03]} (37... Rd7 {is a better defense.}) 38. Re7+ $18 {[%emt 0:00:05]} Kg6 {[%emt 0:00:01]} 39. Rfe4 {[%emt 0:00:19]} Rd2 {[%emt 0:00:02]} 40. R4e6+ {[%emt 0:00:05]} Kh5 {[%emt 0:00:01]} 41. Rf6 {[%emt 0:00:07] Inhibits Rf5.} ({Not} 41. Rxb7 Rf5 42. Kf1 (42. Rxc6 $2 {leads to mate.} Rdxf2+ 43. Kh1 Rf1+ 44. Kh2 R5f2#) 42... Rdxf2+ 43. Ke1 Rf1+ 44. Ke2 R5f2+ 45. Kd3 Rf3+ 46. Kd4 Rd1+ 47. Kc4 Rxg3 $11) 41... Rxb2 {[%emt 0:00:02]} 42. Ree6 $2 {[%emt 0:00:01]} (42. Rxb7 $18 {[%cal Ob7c7] Threatens to win with Rc7!} Rg6 43. Rxg6 Kxg6 44. Rb6) 42... Rg7 $11 {[%emt 0:00:02]} 43. Rf4 {[%emt 0:00:51]} Rb3 {[%emt 0:00:03]} 44. a4 {[%emt 0:00:00]} Ra3 {[%emt 0:00:03]} 45. a5 {[%emt 0:00:01]} Rb3 {[%emt 0:00:00]} 46. Re1 {[%emt 0:00:29]} Rd3 {[%emt 0:00:02]} 47. Re5+ {[%emt 0:00:09]} Rg5 {[%emt 0:00:04]} 48. Re7 {[%emt 0:00:01]} Rb5 {[%emt 0:00:02]} (48... c5 $11 {and Black is okay.}) 49. Rg7 $18 {[%emt 0:00:02][%mdl 1024] White has strong compensation.} Rd6 $2 {[%emt 0:00:02]} (49... Rg5 $18 50. Rxb7 Ra3) 50. Rfxg4 {[%emt 0:00:06] Weighted Error Value: White=0.17 (very precise) /Black=0.43} ({Weaker is} 50. Rgxg4 Rf6 $16) 1-0